bitfinex-derivatives/quotes_ETHF0:USTF0_20250804
["timestamp","ask_amount","ask_price","bid_price","bid_amount"]
[1754303091123,0.56042,3568.8,3568.5,0.00420408]
[1754303091329,1.7628,3568.6,3568.5,0.00420408]
[1754303091827,1.7628,3568.6,3568.5,0.26760408]
[1754303092132,0.2113,3569.1,3569.0,0.56038]
[1754303092328,0.512,3569.1,3569.0,0.82378]
[1754303092629,1.4616,3569.1,3569.0,0.82378]
[1754303092829,1.7628,3569.1,3569.0,0.82378]
[1754303093134,1.7628,3569.1,3569.0,0.56038]
[1754303093430,1.7628,3568.7,3568.6,0.56045]
[1754303093625,1.7628,3568.7,3568.6,0.82385]
[1754303093832,1.3278,3568.7,3568.6,0.82385]
[1754303094037,0.528,3569.0,3568.9,0.7225]
[1754303094225,1.7628,3569.0,3568.9,0.2634]
[1754303094528,1.7628,3569.0,3568.9,0.1621]
[1754303094728,0.3012,3569.0,3568.9,0.1621]
[1754303094925,1.7628,3569.0,3568.9,0.1621]
[1754303095127,1.7628,3569.0,3568.9,0.2634]
[1754303095831,1.3278,3569.0,3568.9,0.2634]
[1754303096225,1.3278,3569.0,3568.8,0.56041]
[1754303096226,0.8132,3568.9,3568.8,0.56041]
[1754303096431,0.3012,3570.9,3568.5,0.00420408]
[1754303096629,0.7259,3570.2,3569.0,0.1013]
[1754303096831,1.4621,3570.2,3570.1,0.72231]
[1754303097028,1.4621,3570.2,3570.1,0.82361]
[1754303097328,0.3012,3570.2,3570.1,0.82361]
[1754303097528,1.4621,3570.7,3570.6,0.72223]
[1754303097727,1.4621,3570.7,3570.6,0.82353]
[1754303097931,1.4621,3570.7,3570.6,0.72223]
[1754303098234,1.4621,3570.7,3570.6,0.56013]
[1754303098527,1.7628,3570.7,3570.6,0.56013]
[1754303098723,1.7628,3570.7,3570.3,0.10550408]
[1754303098724,0.7259,3570.5,3570.4,0.82356]
[1754303098930,0.3012,3570.5,3570.4,0.82356]
[1754303099631,2.4616,3571.0,3570.9,0.56009]
[1754303100027,1.0,3571.0,3570.9,0.66139]
[1754303100230,1.0,3571.0,3570.9,0.56009]
[1754303100532,1.0,3571.0,3570.9,0.1013]
[1754303100730,60.069,3573.2,3571.4,0.7314]
[1754303100930,0.55975,3573.1,3572.4,0.55984]
[1754303101230,1.0,3574.0,3572.6,0.7314]
[1754303101427,0.55972,3573.3,3572.8,0.55979]
[1754303101624,0.55967,3573.6,3573.0,0.55975]
[1754303101931,1.0,3574.0,3573.0,0.55975]
[1754303102125,1.0,3574.0,3573.3,0.5597]
[1754303102331,1.0,3574.0,3573.5,0.55967]
[1754303102540,0.55965,3573.7,3573.0,0.2964]
[1754303102831,1.0,3574.0,3572.9,0.00419792]
[1754303102832,1.0,3574.0,3573.7,0.55965]
[1754303103135,1.0,3574.0,3573.9,1.59212]
[1754303104037,2.0369,3574.0,3573.9,0.7314]
[1754303104228,2.0369,3574.0,3572.9,0.00419792]
[1754303104229,1.0,3574.0,3572.9,0.00419792]
[1754303104429,0.55976,3573.0,3572.9,0.00419792]
[1754303104630,1.59666,3573.0,3572.9,0.00419792]
[1754303105439,1.0369,3573.0,3572.9,0.00419792]
[1754303106333,0.55982,3572.6,3572.0,0.55991]
[1754303106534,2.13553,3573.2,3572.1,0.55989]
[1754303106735,0.55983,3572.6,3572.0,0.5599]
[1754303106936,0.7357,3572.5,3572.2,0.55988]
[1754303107139,0.3012,3573.2,3572.8,0.2964]
[1754303107441,1.7357,3574.0,3573.9,0.55962]
[1754303107629,1.7357,3574.0,3573.8,0.55962]
[1754303107832,1.7357,3574.0,3573.8,1.29522]
[1754303108037,0.3012,3573.9,3573.8,1.29522]
[1754303108226,1.0369,3573.9,3573.8,1.29522]
[1754303108428,2.0369,3574.0,3573.9,0.55962]
[1754303108632,1.0369,3573.9,3572.7,1.0367]
[1754303108831,0.6019,3573.5,3572.8,0.7356]
[1754303109036,0.3012,3573.4,3572.8,0.7356]
[1754303109835,0.3007,3573.5,3572.7,0.3011]
[1754303109836,0.3012,3573.3,3573.2,0.4392]
[1754303110032,1.0369,3573.8,3573.0,0.55975]
[1754303110232,1.0,3574.0,3573.2,0.55972]
[1754303110233,0.55965,3573.7,3573.2,0.55972]
[1754303110437,1.0369,3573.7,3573.0,0.4392]
[1754303110938,1.0369,3573.7,3573.5,0.55968]
[1754303111239,1.0369,3573.6,3573.5,0.55968]
[1754303111440,1.3012,3574.0,3573.9,0.55962]
[1754303111743,2.0369,3574.0,3573.9,0.55962]
[1754303112133,1.0,3574.0,3573.5,0.7356]
[1754303112339,0.2902,3573.7,3573.6,0.55965]
[1754303112538,1.0533,3573.7,3573.6,1.29935]
[1754303112732,0.6013,3573.7,3573.6,1.29935]
[1754303113138,1.0533,3573.7,3573.6,0.55965]
[1754303114034,1.55961,3574.0,3573.4,0.55968]
[1754303114240,0.6013,3573.5,3573.4,0.7397]
[1754303114441,1.0533,3573.5,3573.0,0.304]
[1754303114643,1.0533,3573.9,3573.1,0.4357]
[1754303114845,1.0533,3573.9,3572.5,1.39957]
[1754303114846,1.0,3574.0,3573.8,0.55963]
[1754303115046,0.2902,3573.9,3573.8,0.86363]
[1754303115246,0.7631,3573.9,3571.8,0.6036]
[1754303115448,1.0533,3573.7,3573.2,0.55972]
[1754303115746,0.2902,3573.4,3573.0,0.55974]
[1754303115943,0.7422,3573.2,3572.9,0.99547]
[1754303116142,0.452,3573.9,3569.7,1.99466153]
[1754303116354,1.55961,3574.0,3573.5,0.7397]
[1754303116646,0.6013,3573.6,3573.5,0.7397]
[1754303116842,0.55969,3573.5,3572.6,0.7397]
[1754303117048,0.55973,3573.2,3572.7,0.55979]
[1754303117350,1.39929,3573.3,3572.2,0.7397]
[1754303117543,0.2902,3572.6,3572.4,0.55984]
[1754303117849,1.0533,3572.4,3572.3,0.55985]
[1754303118247,0.7631,3572.4,3571.8,0.7397]
[1754303118447,0.2902,3572.1,3571.4,0.304]
[1754303118644,0.6013,3572.4,3571.7,0.4357]
[1754303118844,1.0533,3572.4,3572.1,0.55988]
[1754303119053,1.0533,3572.2,3572.0,0.5599]
[1754303119353,1.0533,3572.1,3572.0,0.5599]
[1754303119544,0.55987,3572.3,3571.7,0.4357]
[1754303119739,0.3111,3572.0,3571.5,0.55998]
[1754303119942,1.0533,3571.8,3571.7,0.55995]
[1754303120246,1.0533,3571.8,3571.5,0.4357]
[1754303120554,1.39937,3573.1,3571.3,0.56001]
[1754303120555,0.55992,3572.0,3571.3,0.56001]
[1754303120741,0.55992,3572.0,3571.2,0.4357]
[1754303120742,0.55994,3571.9,3571.2,0.56002]
[1754303120941,0.2902,3571.2,3571.1,0.56004]
[1754303121146,1.0533,3571.4,3570.6,0.7397]
[1754303121348,1.0533,3571.5,3571.0,0.56005]
[1754303121547,1.0533,3571.6,3571.0,0.56005]
[1754303121749,1.0533,3571.5,3571.0,0.56005]
[1754303121948,0.6013,3571.6,3571.1,0.56004]
[1754303122154,0.7631,3571.0,3570.8,0.56008]
[1754303122455,1.61346,3570.5,3569.3,0.7397]
[1754303122657,0.56019,3570.3,3569.6,0.56029]
[1754303122857,0.2902,3569.9,3569.0,0.7397]
[1754303123151,0.452,3569.6,3569.0,0.7397]
[1754303123352,0.56019,3570.3,3568.5,1.0393]
[1754303123551,0.2902,3570.1,3569.7,0.56026]
[1754303123748,1.0533,3570.0,3569.4,0.7397]
[1754303124057,0.2902,3569.9,3569.4,0.7397]
[1754303124359,1.40027,3570.8,3569.5,0.7397]
[1754303124549,41.7748323,3571.7,3569.5,0.7397]
[1754303124550,0.7631,3570.2,3570.0,0.56021]
[1754303124746,0.452,3570.2,3569.8,0.56025]
[1754303124950,0.7422,3569.9,3569.6,0.56028]
[1754303125160,1.0533,3569.7,3569.6,0.56028]
[1754303125363,1.0533,3569.7,3569.5,0.56029]
[1754303125560,0.5602,3570.2,3569.8,0.56025]
[1754303125757,0.2902,3570.1,3569.3,0.7397]
[1754303126055,1.0533,3569.8,3569.7,0.56026]
[1754303126251,1.0533,3569.8,3569.7,1.29996]
[1754303126456,1.0533,3569.8,3569.7,0.56026]
[1754303127059,1.0533,3569.7,3569.6,0.56028]
[1754303127261,1.0533,3569.7,3569.4,0.5603]
[1754303127458,0.2902,3570.0,3569.1,0.56035]
[1754303127656,1.40074,3569.6,3568.7,0.56042]
[1754303127856,0.56038,3569.1,3568.8,0.5604]
[1754303128153,0.2902,3568.8,3568.7,0.99612]
[1754303128457,40.318,3570.3,3569.5,0.5603]
[1754303128458,0.3111,3569.6,3569.5,0.5603]
[1754303128657,0.2902,3569.6,3569.5,1.3]
[1754303128851,0.2902,3569.6,3569.5,0.7397]
[1754303129054,0.6013,3569.6,3569.5,0.7397]
[1754303129457,0.2902,3569.6,3569.5,0.7397]
[1754303129963,1.0533,3569.6,3569.5,0.7397]
[1754303130563,0.2902,3569.6,3569.5,0.7397]
[1754303131671,0.3111,3569.6,3569.4,0.56032]
[1754303131963,1.0533,3569.1,3569.0,0.56037]
[1754303132759,1.0533,3569.5,3569.4,0.56032]
[1754303132962,1.0533,3569.5,3569.4,1.30002]
[1754303133470,0.6013,3569.5,3569.4,1.30002]
[1754303134373,1.0533,3569.5,3569.4,1.30002]
[1754303134861,0.2902,3569.4,3569.3,0.56032]
[1754303135468,0.2902,3569.4,3569.3,1.30002]
[1754303135858,0.2902,3569.4,3569.3,1.59962]
[1754303136462,1.0533,3569.8,3569.7,0.56027]
[1754303136668,1.0533,3569.8,3569.7,1.29997]
[1754303136972,1.0533,3569.8,3569.7,0.7397]
[1754303137265,0.2902,3569.6,3569.1,0.7397]
[1754303137464,1.0533,3569.4,3569.2,0.56035]
[1754303137665,0.56029,3569.6,3569.3,0.56032]
[1754303137865,0.56028,3569.7,3569.4,0.56031]
[1754303138367,0.7422,3569.5,3569.4,0.56031]
[1754303138566,1.0533,3569.5,3569.4,1.30001]
[1754303138967,1.0533,3569.5,3569.4,0.7397]
[1754303139960,0.56032,3569.4,3569.2,0.99604]
[1754303140272,0.2902,3569.3,3569.2,0.99604]
[1754303140473,0.2902,3569.3,3569.2,1.59964]
[1754303143473,1.0281,3569.3,3569.2,1.30004]
[1754303144168,1.4009,3569.2,3567.5,0.22345126]
[1754303144465,1.4009,3569.2,3567.2,1.99466153]
[1754303144466,1.0313,3568.0,3567.2,0.317]
[1754303144670,1.0313,3568.0,3567.4,1.01262]
[1754303144872,1.0313,3568.0,3567.4,0.452]
[1754303145265,1.0313,3568.0,3567.2,0.317]
[1754303145777,1.0313,3568.0,3567.2,0.87765]
[1754303145977,1.0313,3568.0,3567.2,0.317]
[1754303146180,1.0313,3568.0,3567.2,0.87765]
[1754303146477,1.0313,3568.0,3567.3,0.56064]
[1754303146672,1.0313,3568.0,3567.2,0.317]
[1754303147074,1.0313,3568.0,3567.1,1.40168]
[1754303147373,1.0313,3568.0,3567.5,0.769]
[1754303147570,1.0313,3568.0,3567.1,1.32967]
[1754303147875,1.0313,3568.0,3567.2,0.56065]
[1754303148076,1.0313,3568.0,3567.1,0.769]
[1754303148377,0.56053,3568.1,3567.1,0.7687]
[1754303148378,0.4383,3567.2,3567.1,0.7687]
[1754303148779,0.4383,3567.2,3567.1,1.0857]
[1754303148978,0.7379,3567.2,3567.1,1.0857]
[1754303149478,1.29856,3567.2,3567.1,1.0857]
[1754303149677,1.59196,3567.2,3567.1,0.7687]
[1754303149879,1.59196,3567.2,3567.1,0.3167]
[1754303150682,0.7379,3566.7,3566.5,0.317]
[1754303150883,0.2934,3566.8,3566.6,1.01276]
[1754303151081,0.56072,3566.9,3566.7,1.0857]
[1754303151284,0.85412,3566.9,3566.8,0.3167]
[1754303151582,1.59202,3566.9,3566.8,0.3167]
[1754303152188,0.7317,3567.5,3566.2,0.452]
[1754303152377,0.2996,3566.9,3566.8,1.0857]
[1754303152676,0.5608,3566.4,3565.4,1.40236]
[1754303152876,0.4383,3566.7,3566.3,0.317]
[1754303153077,0.7379,3566.7,3566.6,1.0857]
[1754303153478,0.5607,3567.0,3566.6,1.64644]
[1754303153672,0.7379,3566.8,3566.7,0.769]
[1754303153877,0.7379,3566.8,3566.7,0.452]
[1754303154084,0.7379,3566.8,3566.0,1.40211]
[1754303154085,0.56077,3566.6,3566.1,0.56082]
[1754303154279,0.4383,3566.4,3566.1,0.56082]
[1754303154485,0.2934,3566.6,3566.3,0.3167]
[1754303154780,0.2996,3566.5,3566.4,0.3167]
[1754303155081,0.56072,3566.9,3566.0,1.4021]
[1754303155278,0.2996,3566.8,3566.2,0.3167]
[1754303155481,0.2996,3566.8,3566.3,0.769]
[1754303155682,0.7379,3566.7,3566.4,1.0857]
[1754303155885,0.56076,3566.6,3566.3,0.56079]
[1754303156085,0.7379,3566.5,3566.4,0.7687]
[1754303156282,0.2996,3566.5,3566.4,1.0857]
[1754303156580,0.7379,3566.8,3566.7,0.3167]
[1754303156779,0.56072,3566.9,3566.7,0.3167]
[1754303156979,0.2934,3566.9,3566.7,0.87743]
[1754303157178,0.85411,3567.0,3566.8,0.3167]
[1754303157378,0.7379,3566.9,3566.8,0.452]
[1754303157586,0.7379,3566.9,3566.8,0.769]
[1754303157985,0.7379,3566.9,3566.8,1.0857]
[1754303159280,0.7379,3566.9,3566.8,0.7687]
[1754303159881,0.7379,3566.9,3566.8,1.0857]
[1754303160282,0.56069,3567.1,3566.9,0.56071]
[1754303160483,0.86029,3567.1,3567.0,1.0857]
[1754303160795,0.5027,3567.1,3567.0,1.8084]
[1754303162183,0.2031,3567.1,3567.0,1.8084]
[1754303163886,40.364,3568.3,3567.0,1.8084]
[1754303163887,1.1529,3567.7,3567.6,0.7227]
[1754303164084,1.1529,3567.7,3567.6,1.4914]
[1754303164279,1.1529,3567.7,3567.6,1.8084]
[1754303164485,1.4525,3567.7,3567.6,0.8312]
[1754303164791,1.7459,3567.7,3567.6,0.8312]
[1754303165784,1.7459,3567.7,3567.6,1.2832]
[1754303166390,1.7459,3567.7,3567.6,0.8312]
[1754303167279,0.7074,3568.4,3568.3,0.56049]
[1754303167486,1.4525,3568.4,3568.3,1.2832]
[1754303167685,1.4525,3568.4,3568.3,0.8312]
[1754303167890,1.7459,3568.4,3568.3,0.5177]
[1754303168186,1.7459,3568.4,3568.3,0.3167]
[1754303168586,1.4525,3568.4,3568.3,0.8312]
[1754303168791,1.4525,3568.4,3568.3,1.4914]
[1754303168992,1.4525,3568.4,3568.3,1.8084]
[1754303170297,0.7074,3568.4,3568.3,1.8084]
[1754303171187,19.875,3568.5,3568.4,1.28317]
[1754303171390,19.875,3568.5,3568.4,2.36887]
[1754303171783,20.3777,3568.5,3568.4,2.36887]
[1754303171986,19.875,3568.5,3568.4,2.36887]
[1754303172589,20.0725,3568.5,3568.4,2.36887]
[1754303172789,20.3757,3568.5,3568.4,2.36887]
[1754303173293,1.5032,3569.0,3568.9,2.05988]
[1754303173492,21.6651,3569.0,3568.9,2.05988]
[1754303173994,0.4082,3568.2,3568.1,1.0265]
[1754303174199,1.1867,3568.2,3568.1,1.0265]
[1754303174396,1.58837,3568.5,3568.4,0.7184]
[1754303174689,1.5032,3568.5,3568.4,1.4995]
[1754303174894,1.5032,3568.5,3568.4,1.8076]
[1754303175691,1.5032,3568.5,3568.4,1.4995]
[1754303175988,0.7247,3568.3,3568.2,0.5126]
[1754303176498,0.7247,3568.3,3568.2,0.987]
[1754303176795,1.5032,3568.3,3568.2,1.2937]
[1754303176994,1.5032,3568.3,3568.2,1.4995]
[1754303178398,1.0279,3568.3,3568.2,1.8076]
[1754303178794,0.1975,3568.3,3568.2,1.8076]
[1754303178993,1.2,3568.6,3568.5,0.7184]
[1754303179295,1.2,3568.6,3568.5,1.8076]
[1754303179493,1.5032,3568.6,3568.5,1.8076]
[1754303179898,1.5032,3568.6,3568.5,1.4995]
[1754303180101,1.8111,3568.6,3568.5,0.8193]
[1754303180396,1.8111,3568.6,3568.2,1.85419]
[1754303180397,0.7247,3568.3,3568.2,1.85419]
[1754303180588,0.7247,3568.3,3567.5,3.39619153]
[1754303180589,1.5032,3568.3,3567.5,3.39619153]
[1754303180791,1.3358,3567.7,3567.6,0.6167]
[1754303180994,1.8111,3567.5,3567.4,0.8193]
[1754303181193,0.7247,3567.3,3567.2,0.677]
[1754303181393,1.8111,3567.3,3567.2,0.5093]
[1754303181593,1.8111,3567.3,3567.2,0.3067]
[1754303181993,0.7247,3567.0,3566.9,1.2937]
[1754303182200,1.5032,3567.0,3566.9,1.2937]
[1754303182593,0.7832,3566.9,3566.7,0.56073]
[1754303182796,1.5032,3566.7,3566.6,1.6018]
[1754303183096,1.5032,3566.4,3566.3,1.1928]
[1754303183401,1.5032,3566.4,3566.3,1.5009]
[1754303183697,1.5032,3566.4,3566.3,1.8076]
[1754303184093,0.3032,3566.7,3566.6,0.2026]
[1754303184299,0.7114,3566.7,3566.6,1.8076]
[1754303184499,0.3032,3567.0,3566.6,1.8076]
[1754303184697,1.1867,3567.0,3566.9,0.7184]
[1754303184896,2.06386,3567.3,3567.2,1.2937]
[1754303185598,2.37176,3567.3,3567.2,0.8193]
[1754303186296,2.37176,3567.3,3567.2,0.5093]
[1754303186503,0.56069,3567.1,3567.0,0.2026]
[1754303186700,1.0864,3567.3,3566.5,1.75356]
[1754303186701,1.1867,3566.6,3566.5,1.75356]
[1754303186999,0.7247,3566.4,3566.3,1.0734]
[1754303187195,1.5032,3566.4,3566.3,1.0734]
[1754303187402,1.5032,3566.4,3566.3,2.0603]
[1754303187697,2.06399,3566.4,3566.3,1.4995]
[1754303187902,2.37189,3566.4,3566.3,0.3067]
[1754303188103,1.40199,3566.4,3565.8,0.4744]
[1754303188300,1.33938,3565.9,3565.7,0.3081]
[1754303188594,1.40199,3566.4,3565.6,0.4744]
[1754303188595,0.7785,3565.7,3565.6,0.4744]
[1754303189198,1.33941,3565.7,3565.3,0.6148]
[1754303189406,0.7785,3565.5,3565.4,1.34203]
[1754303189701,0.7785,3565.5,3565.4,0.7811]
[1754303190696,1.5032,3565.5,3565.4,1.2937]
[1754303190996,1.5032,3565.5,3565.4,1.8076]
[1754303192202,1.5032,3565.5,3565.3,0.3067]
[1754303192408,1.5032,3565.3,3565.2,1.75377]
[1754303192603,1.5032,3565.3,3565.2,1.1928]
[1754303192904,1.5032,3565.3,3565.2,1.4995]
[1754303193101,0.1975,3565.6,3565.5,1.75372]
[1754303193307,0.1975,3565.6,3565.5,2.06182]
[1754303193517,1.0279,3565.6,3565.5,1.5009]
[1754303193709,1.0864,3565.5,3565.3,0.3067]
[1754303193912,1.8111,3565.4,3565.3,0.3067]
[1754303194118,2.37209,3565.2,3564.9,1.57085183]
[1754303194308,0.7247,3565.0,3564.9,1.31653183]
[1754303194517,1.8111,3565.0,3564.9,1.31653183]
[1754303194720,1.8111,3565.0,3564.9,1.82913183]
[1754303194919,1.5032,3565.0,3564.9,2.50933183]
[1754303195320,1.8111,3565.0,3564.9,1.00983183]
[1754303195519,1.5032,3565.0,3564.9,2.30353183]
[1754303196525,1.8111,3565.0,3564.9,1.82913183]
[1754303197329,1.8111,3565.0,3564.9,1.00983183]
[1754303198723,1.8111,3565.0,3564.9,1.31653183]
[1754303199023,1.2,3565.4,3565.3,0.7184]
[1754303199222,1.2,3565.4,3565.3,1.4995]
[1754303199629,1.5032,3565.4,3565.3,1.4995]
[1754303200122,0.7114,3565.6,3565.5,0.2058]
[1754303200326,0.56097,3565.3,3565.2,0.56097]
[1754303200526,2.37207,3565.3,3565.2,0.86767]
[1754303201325,1.8111,3565.3,3565.2,0.86767]
[1754303202620,1.0864,3565.3,3565.0,0.76491]
[1754303202824,1.4763,3565.1,3565.0,0.8331]
[1754303203627,0.7628,3565.7,3565.0,1.7976]
[1754303203834,1.4763,3565.2,3565.1,1.7845]
[1754303204027,1.4763,3565.2,3565.1,2.34549]
[1754303204228,1.4763,3565.2,3565.1,0.82]
[1754303204526,1.7707,3565.0,3564.9,1.53293183]
[1754303204724,1.7707,3565.0,3564.9,1.00983183]
[1754303204921,0.411,3564.4,3564.3,0.56111]
[1754303205128,0.6859,3564.4,3564.3,2.34561]
[1754303206434,0.9803,3564.4,3564.3,2.34561]
[1754303206931,0.6859,3564.4,3564.3,2.34561]
[1754303207331,0.56108,3564.6,3564.1,1.1724]
[1754303207332,0.411,3564.2,3564.1,1.1724]
[1754303207524,0.9803,3564.2,3564.1,1.4916]
[1754303208029,0.9803,3564.2,3564.1,1.0166]
[1754303208230,1.24708,3564.0,3563.8,0.56119]
[1754303208427,1.24708,3564.0,3563.9,0.3192]
[1754303208827,1.54148,3564.0,3563.9,0.3192]
[1754303209022,0.9803,3564.0,3563.9,0.3192]
[1754303209634,0.6859,3564.0,3563.9,1.7845]
[1754303210236,0.9803,3564.0,3563.9,0.3192]
[1754303211033,1.57462338,3564.0,3563.9,0.3192]
[1754303211235,1.00532338,3564.0,3563.9,1.0166]
[1754303211436,1.00532338,3564.0,3563.9,1.7845]
[1754303212435,1.28022338,3564.0,3563.9,1.7845]
[1754303213634,1.57462338,3564.0,3563.9,1.295]
[1754303213936,1.57462338,3564.0,3563.9,1.7845]
[1754303215837,1.00532338,3564.0,3563.9,1.7845]
[1754303216034,0.80502338,3564.0,3563.9,1.7845]
[1754303216733,0.59432338,3564.0,3563.9,1.7845]
[1754303217533,0.4659,3564.8,3564.0,1.40292]
[1754303217836,0.5132,3564.8,3564.7,2.05266]
[1754303218040,1.4541,3564.8,3564.7,2.05266]
[1754303218241,1.4541,3564.8,3564.7,2.34556]
[1754303219634,1.7485,3564.8,3564.7,2.05266]
[1754303219841,1.7485,3564.8,3564.7,2.34556]
[1754303220034,1.7485,3564.8,3564.7,1.87056]
[1754303220639,1.4541,3564.8,3564.7,1.87056]
[1754303220940,1.4541,3564.8,3564.7,2.34556]
[1754303221234,1.4541,3564.8,3564.7,1.87056]
[1754303221434,1.4541,3564.8,3564.7,0.56106]
[1754303221435,1.7485,3564.8,3564.7,0.56106]
[1754303221838,0.5132,3564.1,3564.0,0.76507]
[1754303222142,1.4541,3564.1,3564.0,2.02647]
[1754303222536,1.4541,3564.1,3564.0,2.34567]
[1754303222740,1.1794,3564.1,3564.0,2.34567]
[1754303223236,19.771,3565.1,3564.7,0.3192]
[1754303223237,22.05554,3564.8,3564.7,0.3192]
[1754303223444,1.035,3564.7,3564.6,0.56106]
[1754303223636,1.7485,3564.7,3564.6,0.56106]
[1754303223833,1.035,3564.7,3563.8,1.40297]
[1754303224047,0.411,3564.0,3563.9,2.34568]
[1754303224237,0.9796,3564.0,3563.9,2.34568]
[1754303225141,1.274,3564.0,3563.9,0.3192]
[1754303225440,1.83518,3563.9,3563.8,0.56119]
[1754303225641,1.83518,3563.9,3563.8,0.88039]
[1754303225840,1.274,3563.9,3563.8,0.88039]
[1754303226140,1.274,3563.9,3563.8,2.34569]
[1754303226737,0.9796,3563.9,3563.8,0.56119]
[1754303227040,1.274,3563.9,3563.8,0.88039]
[1754303227731,1.274,3563.9,3563.8,0.3192]
[1754303227930,0.9801,3563.7,3563.6,1.17332]
[1754303228142,1.274,3563.7,3563.6,1.17332]
[1754303228544,1.274,3563.7,3563.6,0.6121]
[1754303229038,1.274,3563.5,3563.4,0.3192]
[1754303229742,1.274,3563.5,3563.4,0.5231]
[1754303230038,1.274,3563.5,3563.2,0.475]
[1754303230039,1.42786,3563.4,3563.2,0.56128]
[1754303230240,1.274,3563.3,3563.2,0.56128]
[1754303230541,0.9796,3563.3,3563.2,2.34578]
[1754303230737,0.7049,3563.3,3563.2,0.56128]
[1754303230932,1.274,3563.3,3563.2,2.34578]
[1754303231138,1.274,3563.3,3563.2,1.7845]
[1754303231333,0.56134,3563.0,3562.8,0.56134]
[1754303231537,1.40315,3563.5,3563.0,2.34582]
[1754303231538,0.411,3563.1,3563.0,2.34582]
[1754303232342,0.5247,3563.1,3563.0,2.34582]
[1754303232548,0.2107,3563.1,3563.0,2.34582]
[1754303232842,0.2023,3563.3,3563.2,2.33139]
[1754303233241,0.5263,3563.3,3563.2,2.33139]
[1754303233441,0.8014,3563.3,3563.2,2.33139]
[1754303233639,0.2023,3563.4,3563.3,1.7701]
[1754303233839,0.7081,3563.4,3563.3,1.78572838]
[1754303234038,1.2936,3563.4,3563.3,1.78572838]
[1754303234241,1.2936,3563.4,3563.3,0.01562838]
[1754303234441,1.2936,3563.4,3563.3,0.30532838]
[1754303234643,1.2936,3563.4,3563.3,0.01562838]
[1754303234838,1.2936,3563.4,3563.3,0.30532838]
[1754303235037,1.2936,3563.4,3563.3,0.01562838]
[1754303235639,1.2936,3563.4,3562.7,0.5888]
[1754303235640,1.13076,3562.8,3562.7,0.5888]
[1754303235835,1.81426,3562.8,3562.7,0.5888]
[1754303236039,1.1308,3562.5,3562.4,1.87981]
[1754303236345,1.5039,3562.5,3562.4,2.33151]
[1754303236640,1.5039,3562.5,3562.4,1.7701]
[1754303236945,0.9425,3562.5,3562.4,1.7701]
[1754303237841,0.6674,3562.5,3562.4,1.7701]
[1754303238143,0.76366,3562.8,3562.7,1.7701]
[1754303238445,0.9425,3562.6,3562.5,2.0324]
[1754303238646,0.9425,3562.6,3562.5,2.3315]
[1754303238847,0.4126,3562.9,3562.8,2.33144]
[1754303239046,21.0149,3562.9,3562.8,0.5972]
[1754303239243,0.9425,3562.5,3562.4,2.11971]
[1754303239442,0.9425,3562.5,3562.4,2.33151]
[1754303239746,1.2529,3562.5,3562.4,1.3184]
[1754303240344,1.22882,3562.5,3562.3,0.56143]
[1754303240647,0.9425,3562.0,3561.9,2.78078235]
[1754303240949,1.2529,3562.0,3561.9,2.78078235]
[1754303242145,0.9425,3562.0,3561.9,2.78078235]
[1754303242350,0.76371,3562.5,3562.4,1.7701]
[1754303242538,20.6995,3562.5,3561.9,1.01068235]
[1754303242851,0.5106,3562.1,3562.0,2.04188]
[1754303243149,19.756,3562.1,3562.0,2.33158]
[1754303243444,20.6985,3562.1,3562.0,1.7701]
[1754303243650,20.2666,3562.1,3562.0,1.7701]
[1754303243848,0.56144,3562.3,3562.2,1.7701]
[1754303244050,0.9425,3562.3,3562.2,1.7701]
[1754303244249,19.758,3562.3,3562.2,2.33154]
[1754303244552,0.7637,3562.5,3562.4,1.291]
[1754303244751,20.5197,3562.5,3562.4,2.0418]
[1754303245043,1.71373,3563.0,3562.8,1.29094]
[1754303245044,0.5106,3562.9,3562.8,1.29094]
[1754303245249,0.56126,3563.4,3563.3,2.33137]
[1754303245446,20.51856,3563.4,3563.3,1.7701]
[1754303245642,21.10196,3563.4,3563.3,1.7701]
[1754303245847,21.25876,3563.4,3563.3,1.7701]
[1754303246350,19.755,3563.4,3563.3,1.7701]
[1754303246652,41.06526,3563.5,3563.4,1.7701]
[1754303246852,61.09536,3563.5,3563.4,1.7701]
[1754303247052,40.406,3563.5,3563.4,1.7701]
[1754303247247,19.745,3563.5,3563.4,1.29086]
[1754303247448,0.56119,3563.9,3563.7,1.29081]
[1754303247449,0.2023,3563.8,3563.7,1.29081]
[1754303247750,20.6875,3563.8,3563.7,0.7296]
[1754303247952,20.9979,3563.8,3563.7,0.3075]
[1754303248155,0.5694,3563.6,3563.5,1.0193]
[1754303248344,0.9425,3563.6,3563.5,1.7701]
[1754303248651,0.6674,3563.6,3563.5,1.7701]
[1754303248856,0.5612,3563.8,3563.6,0.98332]
[1754303249153,19.741,3563.7,3563.6,1.29082]
[1754303249552,19.741,3563.7,3563.6,2.33132]
[1754303250249,0.56111,3564.4,3564.2,1.7701]
[1754303250456,60.15,3564.3,3564.2,1.7701]
[1754303250650,60.248,3564.3,3564.2,1.7701]
[1754303250855,60.245,3564.3,3564.2,1.7701]
[1754303251048,60.147,3564.3,3564.2,1.7701]
[1754303252655,0.2023,3564.8,3564.7,1.4804]
[1754303252854,19.9213,3564.8,3564.7,1.7701]
[1754303253159,20.0193,3564.8,3564.7,1.7701]